bitfinex/quotes_SOLUSD_20241208
["timestamp","ask_amount","ask_price","bid_price","bid_amount"]
[1733664600560,200.0,237.52,237.46,23.776884]
[1733664600873,200.0,237.52,237.48,0.12549]
[1733664601184,200.0,237.52,237.49,23.902374]
[1733664601653,200.0,237.52,237.5,0.25098]
[1733664602049,200.0,237.52,237.51,0.12549]
[1733664603205,200.0,237.52,237.48,0.12549]
[1733664603367,200.0,237.52,237.41,0.63151151]
[1733664604463,200.0,237.52,237.42,0.75711075]
[1733664604894,200.0,237.52,237.43,0.12549]
[1733664605392,200.0,237.52,237.46,0.12549]
[1733664605668,200.0,237.52,237.47,23.902374]
[1733664606188,200.0,237.52,237.46,0.12549]
[1733664607002,200.0,237.52,237.45,23.776884]
[1733664608097,200.0,237.52,237.42,20.0]
[1733664608471,200.0,237.52,237.41,24.153354]
[1733664608664,200.0,237.52,237.41,0.25098]
[1733664609278,200.0,237.52,237.41,0.12549]
[1733664609477,200.0,237.52,237.39,0.12549]
[1733664609981,200.0,237.52,237.39,23.902374]
[1733664610779,3.1577,237.51,237.4,0.12549]
[1733664610981,1.5072,237.48,237.39,23.776884]
[1733664612604,1.5072,237.48,237.37,24.153354]
[1733664612920,1.5072,237.48,237.39,24.153354]
[1733664613214,1.5072,237.48,237.41,24.027864]
[1733664614110,1.5072,237.48,237.41,24.65955855]
[1733664614307,1.5072,237.48,237.41,0.12549]
[1733664614516,1.5072,237.48,237.41,0.25098]
[1733664614897,32.1596452,237.5,237.43,24.027864]
[1733664617402,32.1596452,237.5,237.43,23.776884]
[1733664618391,32.1596452,237.5,237.44,1.00816767]
[1733664618731,32.1596452,237.5,237.45,23.776884]
[1733664619029,32.1596452,237.5,237.46,0.12549]
[1733664619327,32.1596452,237.5,237.46,0.25098]
[1733664623983,32.1596452,237.5,237.45,23.776884]
[1733664624919,32.1596452,237.5,237.46,0.25098]
[1733664625430,32.1596452,237.5,237.47,23.776884]
[1733664633443,32.1596452,237.5,237.38,0.63155285]
[1733664633654,32.1596452,237.5,237.39,20.63166753]
[1733664634139,32.1596452,237.5,237.4,0.25098]
[1733664634713,32.1596452,237.5,237.39,0.63167289]
[1733664634714,35.3174452,237.5,237.39,0.63167289]
[1733664635134,35.3174452,237.5,237.35,0.12549]
[1733664635339,35.3174452,237.5,237.37,0.12549]
[1733664635712,35.3174452,237.5,237.37,0.25098]
[1733664635937,35.3174452,237.5,237.39,24.027864]
[1733664636538,35.3174452,237.5,237.4,0.12549]
[1733664638116,20.0,237.47,237.33,6.65992472]
[1733664638644,1.5298,237.46,237.34,0.12549]
[1733664639222,1.5298,237.46,237.35,0.25098]
[1733664639547,1.5298,237.46,237.37,0.12549]
[1733664639548,20.0,237.45,237.37,0.12549]
[1733664639941,20.0,237.45,237.37,0.25098]
[1733664641044,20.0,237.45,237.37,24.027864]
[1733664641545,20.0,237.45,237.37,23.776884]
[1733664642621,3.1586,237.44,237.33,0.63179669]
[1733664643042,20.0,237.45,237.35,0.12549]
[1733664643842,20.0,237.45,237.33,0.12549]
[1733664644012,20.0,237.45,237.35,0.12549]
[1733664644218,20.0,237.45,237.36,23.902374]
[1733664644520,20.0,237.45,237.38,23.776884]
[1733664647641,23.1586,237.45,237.38,23.776884]
[1733664648262,23.1586,237.45,237.31,0.63181317]
[1733664648554,23.1586,237.45,237.29,23.776884]
[1733664648737,23.1586,237.45,237.31,24.027864]
[1733664649548,23.1586,237.45,237.31,0.25098]
[1733664649752,23.1586,237.45,237.3,0.63196515]
[1733664650054,23.1586,237.45,237.24,0.63196855]
[1733664650055,6.1972,237.42,237.24,0.63196855]
[1733664650255,20.0,237.39,237.24,0.63196855]
[1733664650424,20.0,237.39,237.25,0.25098]
[1733664650966,20.0,237.39,237.24,0.63196855]
[1733664651134,3.1594,237.38,237.25,0.12549]
[1733664651318,3.1594,237.38,237.27,0.12549]
[1733664652256,20.0,237.39,237.27,1.0084716]
[1733664652551,6.1972,237.42,237.33,0.12549]
[1733664652721,6.1972,237.42,237.35,0.12549]
[1733664652922,6.1972,237.42,237.34,23.776884]
[1733664653160,6.1972,237.42,237.33,0.12549]
[1733664653660,6.1972,237.42,237.33,0.25098]
[1733664656847,6.1972,237.42,237.32,23.776884]
[1733664657046,6.1972,237.42,237.3,23.776884]
[1733664657047,20.0,237.39,237.3,23.776884]
[1733664657351,20.0,237.39,237.31,0.25098]
[1733664661269,20.0,237.39,237.3,23.776884]
[1733664662374,20.0,237.39,237.25,20.0]
[1733664662595,3.1594,237.38,237.26,0.63205307]
[1733664663166,3.1594,237.38,237.23,0.63207518]
[1733664663664,3.1594,237.38,237.24,0.25098]
[1733664663890,3.1594,237.38,237.26,0.25098]
[1733664664091,3.1594,237.38,237.28,0.25098]
[1733664665508,3.1594,237.38,237.24,0.25098]
[1733664665670,3.1594,237.38,237.26,24.153354]
[1733664665873,3.1594,237.38,237.28,24.153354]
[1733664666610,3.1594,237.38,237.3,23.776884]
[1733664675502,3.1597,237.36,237.3,23.776884]
[1733664676065,3.1597,237.36,237.23,0.63200898]
[1733664676268,1.641,237.37,237.24,23.902374]
[1733664676480,1.641,237.37,237.27,0.25098]
[1733664676682,1.641,237.37,237.3,0.12549]
[1733664676883,1.641,237.37,237.32,0.12549]
[1733664681017,7.7815,237.42,237.34,0.12549]
[1733664681199,1.5843,237.42,237.35,24.027864]
[1733664683210,1.5843,237.42,237.35,23.776884]
[1733664684213,3.159,237.41,237.28,0.63185579]
[1733664684728,3.159,237.41,237.25,0.63198552]
[1733664685504,3.159,237.41,237.27,0.37647]
[1733664685721,3.159,237.41,237.29,24.153354]
[1733664686815,3.159,237.41,237.29,24.027864]
[1733664688226,20.0,237.4,237.29,23.776884]
[1733664688391,20.0,237.36,237.25,0.12549]
[1733664688586,20.0,237.36,237.25,0.25098]
[1733664688789,1.6319,237.35,237.24,0.63198606]
[1733664689208,1.6319,237.35,237.22,0.12549]
[1733664690191,4.7918,237.35,237.25,0.25098]
[1733664694695,4.7918,237.35,237.25,0.12549]
[1733664696121,4.7918,237.35,237.24,23.776884]
[1733664699816,24.7918,237.35,237.24,23.776884]
[1733664700003,4.7918,237.35,237.24,23.776884]
[1733664703817,4.7918,237.35,237.18,0.63213974]
[1733664704048,0.12549,237.34,237.18,0.63213974]
[1733664704217,0.12549,237.34,237.19,0.12549]
[1733664704744,3.1601,237.33,237.19,0.12549]
[1733664705325,3.1601,237.33,237.19,23.902374]
[1733664711218,6.0892,237.32,237.19,23.902374]
[1733664711419,3.1604,237.31,237.19,23.902374]
[1733664712964,1.5995,237.3,237.19,23.902374]
[1733664714439,1.5995,237.3,237.19,23.776884]
[1733664715932,1.5995,237.3,237.18,24.027864]
[1733664716337,20.0,237.29,237.18,23.776884]
[1733664716656,23.1606,237.29,237.18,24.40922664]
[1733664716963,23.1606,237.29,237.2,23.776884]
[1733664724925,20.0,237.29,237.2,23.776884]
[1733664725131,1.5995,237.3,237.23,0.25098]
[1733664725459,1.5995,237.3,237.24,23.776884]
[1733664725966,1.5995,237.3,237.25,0.25098]
[1733664726280,1.6605,237.36,237.26,23.776884]
[1733664728661,1.6605,237.36,237.29,0.25098]
[1733664728866,1.6605,237.36,237.31,0.12549]
[1733664729160,1.6605,237.36,237.32,23.776884]
[1733664730143,1.6605,237.42,237.32,23.776884]
[1733664734737,20.0,237.4,237.32,23.776884]
[1733664735265,20.0,237.4,237.27,0.63198216]
[1733664735474,20.0,237.4,237.24,0.63204544]
[1733664736060,20.0,237.4,237.25,0.12549]
[1733664736452,20.0,237.4,237.26,0.25098]
[1733664736663,3.1593,237.39,237.27,23.776884]
[1733664736851,3.1593,237.39,237.26,0.63205905]
[1733664737038,3.1593,237.39,237.24,0.63208972]
[1733664737239,1.6194,237.38,237.24,0.63208972]
[1733664737451,1.6194,237.38,237.21,0.63214166]
[1733664738379,3.1596,237.37,237.23,0.12549]
[1733664738679,6.6562,237.35,237.23,23.902374]
[1733664739072,6.6562,237.35,237.23,23.776884]
[1733664739385,20.0,237.32,237.18,4.68150871]
[1733664739544,20.0,237.32,237.19,0.63222894]
[1733664739745,20.0,237.32,237.17,0.12549]
[1733664739974,20.0,237.32,237.19,0.12549]
[1733664740173,20.0,237.32,237.21,0.12549]
[1733664740773,20.0,237.32,237.21,23.902374]
[1733664744153,1.6194,237.34,237.23,23.902374]
[1733664744466,1.6194,237.34,237.25,23.902374]
[1733664745561,1.6194,237.34,237.24,0.12549]
[1733664745762,1.6194,237.34,237.25,23.902374]
[1733664747595,1.6194,237.34,237.25,23.776884]
[1733664748095,1.6194,237.34,237.19,0.63209779]
[1733664748297,20.0,237.32,237.19,0.63209779]
[1733664748474,20.0,237.32,237.2,0.12549]
[1733664749274,20.0,237.32,237.22,23.776884]
[1733664749587,20.0,237.32,237.15,6.5313]
[1733664749588,1.6194,237.34,237.25,0.12549]
[1733664749893,7.7463,237.46,237.3,23.902374]
[1733664750067,7.7463,237.46,237.31,0.63194547]
[1733664750472,7.7463,237.46,237.32,23.776884]
[1733664751795,3.1585,237.45,237.32,23.776884]
[1733664752175,1.5757,237.42,237.28,23.776884]
[1733664752573,0.25098,237.41,237.26,0.63206255]
[1733664752794,6.1706,237.4,237.26,0.63206255]
[1733664753168,20.0,237.37,237.27,0.12549]
[1733664753700,9.3299,237.4,237.27,23.902374]
[1733664754197,20.0,237.37,237.27,23.902374]
[1733664754381,9.3299,237.4,237.29,23.776884]
[1733664756214,20.0,237.37,237.29,23.776884]
[1733664756376,20.0,237.37,237.27,23.902374]
[1733664757784,9.3299,237.4,237.27,23.902374]
[1733664758097,20.0,237.37,237.27,23.902374]
[1733664758793,9.3299,237.4,237.28,0.63204597]
[1733664759099,9.3299,237.4,237.29,23.776884]
[1733664759992,9.3299,237.4,237.28,23.776884]
[1733664762983,9.3299,237.4,237.27,23.902374]
[1733664763296,9.3299,237.4,237.26,23.776884]
[1733664763297,20.0,237.37,237.26,23.776884]
[1733664765799,1.5494,237.36,237.21,0.63210756]
[1733664766097,1.5494,237.36,237.22,0.12549]
[1733664766475,1.5494,237.36,237.22,0.75766787]
[1733664767100,1.5494,237.36,237.23,23.776884]
[1733664767675,3.1598,237.35,237.23,23.776884]
[1733664768006,3.1598,237.35,237.22,23.776884]
[1733664768385,20.0,237.31,237.22,23.776884]
[1733664770701,6.5846,237.34,237.22,23.776884]
[1733664771009,6.5846,237.34,237.25,0.12549]
[1733664771174,1.5494,237.36,237.26,23.776884]
[1733664771375,1.5494,237.36,237.28,23.776884]
[1733664780918,1.5494,237.36,237.24,0.63204045]
[1733664781110,4.7091,237.36,237.25,23.776884]
[1733664781322,4.7091,237.36,237.24,0.63204045]
[1733664781487,4.7091,237.36,237.21,0.6321494]
[1733664782612,4.7091,237.36,237.23,23.902374]
[1733664786318,3.16,237.34,237.23,23.776884]
[1733664787614,6.4723,237.33,237.23,23.776884]
[1733664791307,6.4723,237.33,237.23,23.776884]
[1733664793321,6.4723,237.33,237.25,23.776884]
[1733664793703,1.5494,237.36,237.26,0.63212968]
[1733664794515,1.5494,237.36,237.25,23.776884]
[1733664801407,3.1598,237.35,237.25,23.776884]
[1733664803102,1.5686,237.34,237.25,23.776884]
[1733664803730,1.5686,237.34,237.22,23.902374]
[1733664803915,1.5686,237.34,237.22,24.53456059]
[1733664805833,0.12549,237.31,237.22,0.63218659]
[1733664806135,1.5686,237.29,237.15,0.63218707]
[1733664806335,1.5686,237.29,237.1,0.632358]
[1733664806508,1.5686,237.29,237.11,0.25098]
[1733664806829,1.5686,237.29,237.13,0.25098]
[1733664807029,3.1608,237.28,237.15,0.12549]
[1733664807323,3.1608,237.28,237.15,23.902374]
[1733664809422,3.1608,237.28,237.17,23.776884]
[1733664809623,3.1608,237.28,237.25,1.0]
[1733664811536,6.57718,237.27,237.25,1.0]
[1733664811702,20.0,237.24,237.09,0.63235687]
[1733664812131,20.0,237.24,237.1,0.12549]
[1733664812336,20.0,237.24,237.09,0.63235687]
[1733664812915,20.0,237.24,237.1,23.776884]
[1733664813119,20.0,237.24,237.12,23.776884]
[1733664816846,3.1614,237.23,237.12,23.776884]
[1733664819262,3.1614,237.23,237.12,23.77611265]
[1733664822062,23.1614,237.23,237.07,23.902374]
[1733664822263,23.1614,237.23,237.07,24.53492786]
[1733664823451,23.1614,237.23,237.08,0.12549]
[1733664823668,3.1617,237.21,237.08,0.12549]
[1733664823856,1.6047,237.19,237.08,0.12549]
[1733664824570,1.6047,237.19,237.1,23.776884]
[1733664824750,1.6047,237.19,237.12,23.776884]
[1733664832756,1.6047,237.19,237.12,23.776884]
[1733664839958,1.6047,237.19,237.06,20.0]
[1733664840168,1.6047,237.19,237.07,0.63255723]
[1733664840457,20.0,237.18,237.08,23.776884]
[1733664840651,1.6047,237.19,237.08,23.776884]
[1733664841082,20.0,237.18,237.08,23.776884]
[1733664843871,20.0,237.18,237.04,0.63256648]
[1733664843872,23.1621,237.18,237.04,0.63256648]
[1733664844082,23.1621,237.18,237.04,23.902374]
[1733664844743,23.1621,237.18,237.04,0.25098]
[1733664845250,0.12549,237.17,237.03,0.63264884]
[1733664845455,3.1624,237.16,237.03,0.63264884]
[1733664845673,3.1624,237.16,236.98,12.23118913]
[1733664845674,3.1624,237.16,237.01,0.12549]
[1733664846563,3.1624,237.16,237.03,0.25098]
[1733664846880,3.1626,237.14,237.04,23.776884]
[1733664847060,3.1626,237.14,237.01,20.12549]
[1733664847061,3.1626,237.14,237.02,23.776884]
[1733664848480,7.7763,237.13,237.02,23.776884]
[1733664849262,3.163,237.11,236.98,0.63272781]
[1733664849467,20.0,237.1,236.98,0.63272781]
[1733664849649,20.0,237.1,236.96,0.12549]
[1733664850164,0.12549,237.09,236.95,0.6328408]
[1733664850695,0.12549,237.09,236.93,0.63289713]
[1733664850892,1.5815,237.08,236.93,0.63289713]
[1733664851059,1.5815,237.08,236.91,0.12549]
[1733664851265,1.5815,237.08,236.89,10.553]
[1733664851266,4.745,237.08,236.93,0.12549]
[1733664852302,4.745,237.08,236.93,0.75839446]
[1733664852474,1.5815,237.08,236.96,0.12549]
[1733664852679,1.5815,237.08,237.0,0.12549]
[1733664852878,1.5815,237.08,237.01,23.902374]
[1733664853184,1.5815,237.08,237.03,23.776884]
[1733664854186,6.1948,237.13,237.05,23.776884]
[1733664855694,6.1948,237.13,237.06,0.63265948]
[1733664855896,6.1948,237.13,237.07,23.776884]
[1733664857396,1.5815,237.14,237.07,23.776884]
[1733664859091,6.5389,237.18,237.09,23.776884]
[1733664859293,6.5389,237.18,237.11,23.776884]
[1733664862189,6.5389,237.18,237.05,0.12549]
[1733664862413,0.12549,237.17,237.05,0.63261808]
[1733664863303,0.12549,237.17,237.03,0.12549]
[1733664863620,0.12549,237.17,237.05,23.776884]
[1733664863917,0.12549,237.17,237.05,24.40953843]
[1733664867398,0.12549,237.17,237.05,23.776884]
[1733664867597,20.0,237.15,237.05,23.776884]
[1733664871024,0.12549,237.14,237.01,23.776884]
[1733664871236,0.12549,237.14,237.01,24.40961111]
[1733664871525,1.5994,237.13,237.01,24.40961111]
[1733664880230,6.5389,237.18,237.04,20.12549]
[1733664880437,6.5389,237.18,237.09,24.027864]
[1733664880607,6.5389,237.18,237.11,23.776884]
[1733664880932,1.5966,237.2,237.13,23.776884]
[1733664881105,1.5966,237.2,237.15,23.776884]
[1733664891851,1.5966,237.2,237.1,23.776884]
[1733664892540,1.5966,237.2,237.09,0.63253099]
[1733664893754,1.5966,237.2,237.09,24.027864]
[1733664893924,1.5966,237.2,237.11,23.776884]
[1733664895329,1.5966,237.2,237.09,24.027864]
[1733664895652,1.5966,237.2,237.09,24.66039371]
[1733664896448,1.5966,237.2,237.09,23.776884]
[1733664899556,1.5966,237.2,237.08,0.63253248]
[1733664900436,3.28749,237.19,237.06,23.776884]
[1733664900957,6.4588,237.18,237.06,23.776884]
[1733664901472,6.4588,237.18,237.05,0.63260911]
[1733664901826,6.4588,237.18,237.06,23.776884]
[1733664902650,20.0,237.15,237.06,23.776884]
[1733664903537,20.0,237.15,237.02,0.12549]
[1733664903733,20.0,237.15,237.02,23.902374]
[1733664904056,20.0,237.15,237.04,23.776884]
[1733664904559,1.6331,237.14,237.02,20.0]
[1733664905941,0.12549,237.13,237.01,0.63266728]
[1733664906147,0.12549,237.11,236.97,0.63273503]
[1733664906349,0.12549,237.11,236.94,23.190542]
[1733664907060,0.12549,237.11,236.95,0.12549]
[1733664907245,6.1262,237.1,236.95,0.75830235]
[1733664907429,6.1262,237.1,236.97,23.902374]
[1733664907630,6.1262,237.1,236.99,23.776884]
[1733664909631,1.6331,237.09,236.95,0.63279756]
[1733664909831,20.0,237.07,236.97,23.776884]
[1733664910048,20.0,237.07,236.97,24.40973913]
[1733664910958,20.0,237.07,236.97,23.776884]
[1733664911165,20.0,237.07,236.95,20.0]
[1733664911461,20.0,237.07,236.96,23.776884]
[1733664911956,20.0,237.07,236.96,24.40976692]
[1733664912158,20.0,237.07,236.96,0.63288292]
[1733664913763,20.0,237.07,236.97,0.63289233]
[1733664914762,20.0,237.07,236.96,0.63286945]
[1733664917233,20.0,237.07,236.97,23.776884]
[1733664917540,20.0,237.07,236.98,0.63280632]
[1733664917754,20.0,237.07,236.97,23.776884]
[1733664918136,20.0,237.07,236.93,23.902374]
[1733664918349,20.0,237.07,236.95,23.776884]
[1733664919351,20.0,237.07,236.94,24.027864]
[1733664920663,3.1637,237.06,236.94,23.776884]
[1733664922650,3.1637,237.06,236.91,20.0]
[1733664922971,3.1637,237.06,236.93,23.776884]
[1733664923171,3.1637,237.06,236.94,0.63292412]
[1733664923854,20.0,237.07,236.95,24.027864]
[1733664924056,1.6331,237.09,236.97,23.776884]
[1733664924249,1.6331,237.09,236.98,0.63280983]
[1733664924867,1.6331,237.09,236.97,23.776884]
[1733664925172,1.6331,237.09,236.96,23.776884]
[1733664925390,20.0,237.07,236.97,0.63282581]
[1733664926688,7.8337,237.06,236.97,0.63282581]
[1733664926905,7.8337,237.06,236.85,7.7202]
[1733664926906,20.0,237.03,236.91,0.63282268]
[1733664927073,20.0,237.03,236.86,0.63298733]
[1733664927271,20.0,237.03,236.87,0.25098]
[1733664927595,20.0,237.03,236.89,0.25098]
[1733664927795,20.0,237.03,236.91,0.25098]
[1733664927976,7.8337,237.06,236.93,24.027864]
[1733664928184,7.8337,237.06,236.95,23.776884]
[1733664928366,7.8337,237.06,236.96,0.63285688]
[1733664929279,7.8337,237.06,236.95,23.776884]
[1733664929484,7.8337,237.06,236.97,0.63286972]
[1733664929980,7.8337,237.06,236.98,23.776884]
[1733664934697,7.8337,237.06,236.99,0.63280705]
[1733664934903,7.8337,237.06,237.0,23.776884]
[1733664938498,7.8337,237.06,236.94,0.12549]
[1733664938662,7.8337,237.06,236.96,24.027864]
[1733664938868,7.8337,237.06,236.96,23.776884]
[1733664939669,7.8337,237.06,236.95,23.776884]
[1733664940499,7.8337,237.06,236.97,23.776884]
[1733664940989,7.8337,237.06,236.94,0.6328791]
[1733664940990,7.8337,237.06,236.95,23.776884]
[1733664942195,10.9974,237.06,236.95,23.776884]
[1733664942397,10.9974,237.06,236.91,0.63291015]
[1733664944137,10.9974,237.06,236.92,23.776884]
[1733664944298,10.9974,237.06,236.94,23.776884]
[1733664945697,10.9974,237.06,236.95,0.63292717]
[1733664945894,10.9974,237.06,236.96,23.776884]
[1733664950099,7.8337,237.06,236.98,23.776884]
[1733664950307,7.8337,237.06,237.0,23.776884]
[1733664951303,1.656,237.06,237.0,23.776884]
[1733664956835,1.656,237.06,237.01,0.6327631]
[1733664957002,1.6288,237.11,237.02,23.776884]
[1733664957208,1.6288,237.11,237.04,23.776884]
[1733664970067,1.6288,237.11,236.98,23.902374]
[1733664970068,20.0,237.09,236.98,23.902374]
[1733664970267,20.0,237.09,236.97,0.63280507]
[1733664971378,20.0,237.09,236.98,0.63279743]
[1733664971561,20.0,237.09,236.99,23.776884]
[1733664974367,20.0,237.09,236.96,23.902374]
[1733664974603,20.0,237.09,236.98,23.776884]
[1733664975897,20.0,237.09,236.98,0.63282055]
[1733664978681,20.0,237.09,236.96,0.75831915]
[1733664986281,20.0,237.09,236.98,0.12549]
[1733664986486,20.0,237.09,236.98,0.75822353]
[1733664993626,20.0,237.09,236.98,0.63273353]
[1733664993935,3.1634,237.08,236.96,0.12549]
[1733664994922,3.1634,237.08,236.96,0.63284108]
[1733664995330,20.0,237.09,236.98,0.12549]
[1733664995627,20.0,237.09,236.98,0.75824695]
[1733664997828,20.0,237.09,236.99,24.027864]
[1733664998040,1.6288,237.11,237.0,0.75818321]
[1733665000029,1.6288,237.11,237.02,0.12549]
[1733665000338,1.6288,237.11,237.02,0.7581314]
[1733665000713,1.6288,237.11,237.04,0.12549]
[1733665000912,6.4731,237.18,237.06,0.12549]
[1733665001234,1.562,237.17,237.06,0.75804336]
[1733665002207,20.0,237.15,237.06,0.75804336]
[1733665002738,1.562,237.17,237.08,0.12549]
[1733665002937,1.562,237.17,237.08,0.7579778]
[1733665005164,1.5414,237.21,237.1,20.0]
[1733665005369,1.5414,237.21,237.12,20.0]
[1733665005531,1.5414,237.21,237.13,24.78572397]
[1733665006567,1.5414,237.26,237.13,24.78572397]
[1733665007251,1.5414,237.26,237.17,0.25098]
[1733665007428,1.5414,237.26,237.19,0.12549]
[1733665007625,1.5414,237.26,237.2,0.63220216]
[1733665017163,1.5414,237.26,237.18,0.63220544]
[1733665020590,21.5414,237.26,237.14,0.63227534]
[1733665021570,21.5414,237.26,237.15,0.63228536]
[1733665022190,1.5414,237.26,237.17,0.12549]
[1733665022406,1.5414,237.26,237.18,24.027864]
[1733665022690,1.5414,237.26,237.19,0.63219329]
[1733665024317,20.0,237.31,237.2,24.153354]
[1733665024493,20.0,237.31,237.22,24.153354]
[1733665024694,20.0,237.31,237.23,0.63209039]
[1733665025819,1.6174,237.32,237.24,0.25098]
[1733665025991,1.6174,237.32,237.25,0.63203704]
[1733665034215,1.6174,237.32,237.23,0.63206389]
[1733665036521,1.6174,237.32,237.2,0.63210121]
[1733665036825,1.6174,237.32,237.22,0.63210121]
[1733665036993,1.6174,237.32,237.19,0.63216798]
[1733665041604,23.1604,237.31,237.19,0.63216798]
[1733665041850,23.1604,237.31,237.16,23.776884]
[1733665042029,23.1604,237.31,237.17,0.6322719]
[1733665046398,20.0,237.26,237.17,0.6322719]
[1733665046622,20.0,237.26,237.13,23.902374]
[1733665046824,20.0,237.26,237.15,24.027864]
[1733665047029,20.0,237.26,237.16,0.63226685]
[1733665048405,8.0857,237.29,237.16,0.63226685]
[1733665053713,8.0857,237.29,237.2,20.0]
[1733665053914,8.0857,237.29,237.21,0.63216903]
[1733665054312,8.0857,237.29,237.18,0.63218006]
[1733665054520,8.0857,237.29,237.13,1.70309]
[1733665054521,3.1608,237.28,237.15,23.776884]
[1733665054731,3.1608,237.28,237.16,0.63230644]
[1733665055116,20.0,237.26,237.16,0.63230644]
[1733665056608,1.6408,237.24,237.14,0.63233841]
[1733665056814,1.6408,237.24,237.09,0.63239031]
[1733665057041,1.6408,237.24,237.1,0.25098]
[1733665057247,1.6408,237.24,237.11,0.6324092]
[1733665058113,1.6408,237.24,237.11,20.6324092]
[1733665060817,1.6408,237.24,237.12,24.027864]
[1733665061015,1.6408,237.24,237.14,24.027864]
[1733665061231,1.6408,237.24,237.15,0.63228459]
[1733665063150,1.6408,237.24,237.13,24.027864]
[1733665063349,1.6408,237.24,237.14,0.63237041]
[1733665064222,1.6408,237.24,237.13,0.63236779]
[1733665073769,1.6408,237.24,237.13,0.63236779]
[1733665081686,4.8022,237.24,237.11,0.63238581]
[1733665082774,4.8022,237.24,237.12,0.63242696]
[1733665083864,4.8022,237.24,237.11,0.63243354]
[1733665084088,24.8022,237.24,237.11,0.63243354]
[1733665084787,4.8022,237.24,237.11,0.63243354]
[1733665089997,20.0,237.2,237.11,0.63243354]
[1733665090167,1.6128,237.19,237.07,23.776884]
[1733665090501,1.6128,237.19,237.08,0.63252952]
[1733665090712,1.6128,237.19,237.04,0.25098]
[1733665090873,20.0,237.15,237.05,0.63252795]
[1733665092399,20.0,237.15,237.03,0.63260663]
[1733665093394,1.6128,237.14,237.0,0.6326349]
[1733665093589,1.6128,237.14,237.01,20.25098]
[1733665093897,1.6128,237.14,237.02,0.63266258]
[1733665094799,1.6128,237.14,237.03,24.027864]
[1733665094997,1.6128,237.14,237.04,0.63258478]
[1733665099195,1.6128,237.14,237.05,0.6326462]
[1733665099383,1.6128,237.14,237.02,0.63263162]
[1733665099588,1.6128,237.14,237.04,0.12549]
[1733665099911,6.1225,237.18,237.09,24.027864]
[1733665100075,1.5638,237.19,237.1,0.63240845]
[1733665102610,1.5638,237.19,237.11,23.776884]
[1733665102912,7.871,237.24,237.12,0.63232649]
[1733665109711,20.0,237.21,237.12,0.63232649]
[1733665109899,20.0,237.21,237.1,0.63242587]
[1733665111098,0.25098,237.2,237.1,0.63242587]
[1733665111425,0.25098,237.2,237.07,0.63249451]
[1733665113216,3.41278,237.2,237.07,0.63249451]
[1733665115018,3.41278,237.2,237.06,0.63256163]
[1733665115927,20.0,237.16,237.06,0.63256163]
[1733665116226,0.12549,237.15,237.02,0.63260997]
[1733665117404,0.12549,237.15,237.02,20.63260997]
[1733665122202,0.25098,237.15,237.02,0.63260997]
[1733665122428,3.41348,237.15,237.02,20.63260997]
[1733665125339,23.776884,237.14,237.02,0.63260997]
[1733665125632,0.12549,237.13,237.02,0.63260997]
[1733665133719,23.776884,237.14,237.02,0.63260997]
[1733665134034,3.28799,237.15,237.02,0.63260997]
[1733665134035,3.1625,237.15,237.02,0.63260997]
[1733665134838,20.0,237.17,237.03,0.25098]
[1733665135005,20.0,237.17,237.04,0.63252816]
[1733665135208,3.1621,237.19,237.05,6.3282]
[1733665135524,3.1621,237.19,237.06,0.63252832]
[1733665136044,23.902374,237.18,237.06,0.63252832]
[1733665136544,1.6176,237.22,237.07,1.6142]
[1733665136726,23.902374,237.21,237.08,20.63246352]